fUSD/lending_fUSD_20240412
["ID","MTS","AMOUNT","RATE_DAILY","PERIOD"]
[322352094,1712958656310,-500.0,0.00047123,31]
[322352095,1712958656319,-500.0,0.00047123,31]
[322352096,1712958656329,-500.0,0.00047123,31]
[322352097,1712958656338,-500.0,0.00047123,31]
[322352098,1712958656348,-215.77,0.00047123,31]
[322352099,1712958656357,-500.0,0.00047123,31]
[322352100,1712958656367,-500.0,0.00047123,31]
[322352101,1712958656376,-500.0,0.00047123,31]
[322352102,1712958656385,-500.0,0.00047123,31]
[322352103,1712958656394,-500.0,0.00047123,31]
[322352104,1712958656403,-500.0,0.00047123,31]
[322352105,1712958656413,-164.15,0.00047123,31]
[322352106,1712958656422,-500.0,0.00047123,31]
[322352107,1712958656432,-538.15,0.00047123,31]
[322352108,1712958656441,-151.0,0.00047123,14]
[322352109,1712958656451,-500.0,0.00047123,31]
[322352110,1712958656461,-500.0,0.00047123,31]
[322352111,1712958656470,-500.0,0.00047123,31]
[322352112,1712958656480,-500.0,0.00047123,31]
[322352113,1712958656490,-500.0,0.00047123,31]
[322352114,1712958656504,-500.0,0.00047123,31]
[322352115,1712958656514,-500.0,0.00047123,31]
[322352116,1712958656524,-555.04931707,0.00047123,31]
[322352117,1712958656534,-151.0,0.00047123,14]
[322352118,1712958656544,-293.4074457,0.00047123,31]
[322352119,1712958656554,-304.37363362,0.00047123,31]
[322352120,1712958656563,-500.0,0.00047123,31]
[322352121,1712958656573,-500.0,0.00047123,31]
[322352122,1712958656583,-457.54097518,0.00047123,31]
[322352123,1712958656593,-500.0,0.00047123,31]
[322352124,1712958656603,-500.0,0.00047123,31]
[322352125,1712958656613,-151.0,0.00047123,14]
[322352126,1712958656622,-500.0,0.00047123,31]
[322352127,1712958656633,-543.68619479,0.00047123,31]
[322352128,1712958656643,-500.0,0.00047123,7]
[322352129,1712958656653,-500.0,0.00047123,31]
[322352130,1712958656663,-576.55,0.00047123,31]
[322352131,1712958656673,-500.0,0.00047123,31]
[322352132,1712958656683,-158.16973246,0.00047123,31]
[322352133,1712958656693,-168.269111,0.00047123,14]
[322352134,1712958656702,-500.0,0.00047123,31]
[322352135,1712958656712,-168.269111,0.00047123,14]
[322352136,1712958656722,-500.0,0.00047123,31]
[322352137,1712958656732,-294.26282871,0.00047123,31]
[322352138,1712958656742,-500.0,0.00047123,31]
[322352139,1712958656751,-387.98,0.00047123,31]
[322352140,1712958656761,-500.0,0.00047123,31]
[322352141,1712958656771,-500.0,0.00047123,31]
[322352142,1712958656780,-933.0,0.00047123,31]
[322352143,1712958656790,-500.0,0.00047123,31]
[322352144,1712958656800,-2019.61,0.00047123,31]
[322352145,1712958656809,-635.97,0.00047123,31]
[322352146,1712958656819,-151.0,0.00047123,14]
[322352147,1712958656829,-690.76,0.00047123,31]
[322352148,1712958656838,-500.0,0.00047123,31]
[322352149,1712958656848,-500.0,0.00047123,31]
[322352150,1712958656858,-500.0,0.00047123,31]
[322352151,1712958656867,-500.0,0.00047123,31]
[322352152,1712958656877,-500.0,0.00047123,31]
[322352153,1712958656886,-500.0,0.00047123,31]
[322352154,1712958656896,-493.497385,0.00047123,14]
[322352155,1712958656906,-500.0,0.00047123,31]
[322352156,1712958656916,-564.75,0.00047123,31]
[322352157,1712958656926,-500.0,0.00047123,31]
[322352158,1712958656935,-493.497385,0.00047123,14]
[322352159,1712958656945,-500.0,0.00047123,31]
[322352160,1712958656955,-500.0,0.00047123,31]
[322352161,1712958656965,-539.86,0.00047123,31]
[322352162,1712958656975,-186.372382,0.00047123,14]
[322352163,1712958656985,-500.0,0.00047123,31]
[322352164,1712958656995,-500.0,0.00047123,31]
[322352165,1712958657004,-661.77,0.00047123,31]
[322352166,1712958657016,-500.0,0.00047123,31]
[322352167,1712958657027,-500.0,0.00047123,31]
[322352168,1712958657040,-500.0,0.00047123,31]
[322352169,1712958657050,-950.68,0.00047123,31]
[322352170,1712958657061,-500.0,0.00047123,31]
[322352171,1712958657071,-500.0,0.00047123,31]
[322352172,1712958657083,-500.0,0.00047123,31]
[322352173,1712958657093,-2117.29,0.00047123,31]
[322352174,1712958657103,-500.0,0.00047123,31]
[322352175,1712958657114,-151.0,0.00047123,14]
[322352176,1712958657124,-151.0,0.00047123,14]
[322352177,1712958657134,-1018.48,0.00047123,31]
[322352178,1712958657145,-151.0,0.00047123,14]
[322352179,1712958657155,-500.0,0.00047123,2]
[322352180,1712958657164,-500.0,0.00047123,31]
[322352181,1712958657175,-151.0,0.00047123,14]
[322352182,1712958657185,-500.0,0.00047123,31]
[322352183,1712958657196,-679.68,0.00047123,31]
[322352184,1712958657207,-151.0,0.00047123,14]
[322352185,1712958657217,-500.0,0.00047123,31]
[322352186,1712958657227,-688.0,0.00047123,31]
[322352187,1712958657238,-300.46,0.00047123,31]
[322352188,1712958657249,-843.3,0.00047123,31]
[322352189,1712958657259,-4584.66,0.00047123,31]
[322352190,1712958657269,-500.0,0.00047123,31]
[322352191,1712958657279,-500.0,0.00047123,31]
[322352192,1712958657289,-477.26,0.00047123,31]
[322352193,1712958657299,-554.68,0.00047123,31]
[322352194,1712958657309,-500.0,0.00047123,31]
[322352195,1712958657319,-500.0,0.00047123,31]
[322352196,1712958657330,-964.63,0.00047123,31]
[322352197,1712958657340,-500.0,0.00047123,31]
[322352198,1712958657351,-500.0,0.00047123,31]
[322352199,1712958657361,-500.0,0.00047123,31]
[322352200,1712958657370,-1471.09,0.00047123,31]
[322352201,1712958657381,-500.0,0.00047123,31]
[322352202,1712958657391,-386.44031494,0.00047123,2]
[322352203,1712958657401,-151.0,0.00047123,14]
[322352204,1712958657411,-500.0,0.00047123,31]
[322352205,1712958657422,-500.0,0.00047123,31]
[322352206,1712958657431,-500.0,0.00047123,31]
[322352207,1712958657441,-500.0,0.00047123,31]
[322352208,1712958657451,-567.23,0.00047123,31]
[322352209,1712958657461,-500.0,0.00047123,31]
[322352210,1712958657471,-500.0,0.00047123,31]
[322352211,1712958657481,-649.64,0.00047123,31]
[322352212,1712958657491,-151.0,0.00047123,14]
[322352213,1712958657501,-500.0,0.00047123,31]
[322352214,1712958657511,-500.0,0.00047123,31]
[322352215,1712958657521,-500.0,0.00047123,31]
[322352216,1712958657531,-500.0,0.00047123,31]
[322352217,1712958657541,-500.0,0.00047123,31]
[322352218,1712958657551,-500.0,0.00047123,31]
[322352219,1712958657561,-500.0,0.00047123,31]
[322352220,1712958657572,-500.0,0.00047123,31]
[322352221,1712958657582,-500.0,0.00047123,31]
[322352222,1712958657592,-500.0,0.00047123,31]
[322352223,1712958657603,-504.77,0.00047123,31]
[322352224,1712958657613,-500.0,0.00047123,31]
[322352225,1712958657622,-500.0,0.00047123,31]
[322352226,1712958657632,-500.0,0.00047123,31]
[322352227,1712958657642,-500.0,0.00047123,31]
[322352228,1712958657652,-2161.08,0.00047123,31]
[322352229,1712958657662,-500.0,0.00047123,31]
[322352230,1712958657671,-1034.34,0.00047123,21]
[322352231,1712958657681,-500.0,0.00047123,31]
[322352232,1712958657690,-457.40797831,0.00047123,31]
[322352233,1712958657700,-500.0,0.00047123,31]
[322352234,1712958657711,-657.185597,0.00047123,14]
[322352235,1712958657721,-500.0,0.00047123,31]
[322352236,1712958657731,-657.185597,0.00047123,14]
[322352237,1712958657741,-151.0,0.00047123,14]
[322352238,1712958657750,-1543.137664,0.00047123,14]
[322352239,1712958657760,-564.36,0.00047123,31]
[322352240,1712958657770,-500.0,0.00047123,31]
[322352241,1712958657780,-1543.137664,0.00047123,14]
[322352242,1712958657790,-520.23387702,0.00047123,31]
[322352243,1712958657800,-500.0,0.00047123,31]
[322352244,1712958657809,-500.0,0.00047123,31]
[322352245,1712958657819,-500.0,0.00047123,31]
[322352246,1712958657829,-537.90552635,0.00047123,31]
[322352247,1712958657838,-151.0,0.00047123,14]
[322352248,1712958657849,-151.0,0.00047123,14]
[322352249,1712958657859,-500.0,0.00047123,31]
[322352250,1712958657869,-500.0,0.00047123,31]
[322352251,1712958657879,-522.89351535,0.00047123,31]
[322352252,1712958657889,-630.77897084,0.00047123,31]
[322352253,1712958657899,-500.0,0.00047123,31]
[322352254,1712958657909,-500.0,0.00047123,31]
[322352255,1712958657918,-848.58,0.00047123,31]
[322352256,1712958657928,-500.0,0.00047123,31]
[322352257,1712958657937,-280.71,0.00047123,31]
[322352258,1712958657947,-500.0,0.00047123,31]
[322352259,1712958657957,-500.0,0.00047123,31]
[322352260,1712958657967,-1673.04,0.00047123,31]
[322352261,1712958657977,-649.268373,0.00047123,14]
[322352262,1712958657986,-2316.35,0.00047123,31]
[322352263,1712958657996,-649.268373,0.00047123,14]
[322352264,1712958658006,-500.0,0.00047123,31]
[322352265,1712958658016,-500.0,0.00047123,31]
[322352266,1712958658026,-500.0,0.00047123,31]
[322352267,1712958658036,-305.08493653,0.00047123,31]
[322352268,1712958658046,-500.0,0.00047123,31]
[322352269,1712958658056,-500.0,0.00047123,31]
[322352270,1712958658067,-376.76274457,0.00047123,31]
[322352271,1712958658077,-500.0,0.00047123,31]
[322352272,1712958658086,-722.55,0.00047123,31]
[322352273,1712958658097,-500.0,0.00047123,31]
[322352274,1712958658107,-500.0,0.00047123,31]
[322352275,1712958658117,-500.0,0.00047123,31]
[322352276,1712958658127,-677.12,0.00047123,31]
[322352277,1712958658137,-754.19,0.00047123,31]
[322352278,1712958658148,-500.0,0.00047123,31]
[322352279,1712958658159,-316.805818,0.00047123,31]
[322352280,1712958658168,-380.81874104,0.00047123,31]
[322352281,1712958658178,-500.0,0.00047123,31]
[322352282,1712958658188,-410.18346641,0.00047123,31]
[322352283,1712958658198,-215.428086,0.00047123,14]
[322352284,1712958658209,-461.31992995,0.00047123,31]
[322352285,1712958658219,-500.0,0.00047123,31]
[322352286,1712958658229,-500.0,0.00047123,31]
[322352287,1712958658238,-1978.67,0.00047123,31]
[322352288,1712958658248,-215.428086,0.00047123,14]
[322352289,1712958658258,-719.28,0.00047123,31]
[322352290,1712958658268,-500.0,0.00047123,31]
[322352291,1712958658278,-500.0,0.00047123,31]
[322352292,1712958658287,-500.0,0.00047123,31]
[322352293,1712958658297,-500.0,0.00047123,31]
[322352294,1712958658307,-151.0,0.00047123,14]
[322352295,1712958658316,-161.37862674,0.00047123,31]
[322352296,1712958658327,-500.0,0.00047123,31]
[322352297,1712958658336,-500.0,0.00047123,31]
[322352298,1712958658347,-533.63,0.00047123,31]
[322352299,1712958658357,-500.0,0.00047123,31]
[322352300,1712958658366,-500.0,0.00047123,31]
[322352301,1712958658376,-427.97,0.00047123,31]
[322352302,1712958658386,-852.78,0.00047123,31]
[322352303,1712958658396,-342.8746005,0.00047123,31]
[322352304,1712958658407,-500.0,0.00047123,31]
[322352305,1712958658419,-500.0,0.00047123,31]
[322352306,1712958658431,-650.62,0.00047123,31]
[322352307,1712958658441,-500.0,0.00047123,31]
[322352308,1712958658451,-151.0,0.00047123,14]
[322352309,1712958658461,-663.97,0.00047123,31]
[322352310,1712958658470,-293.211896,0.00047123,2]
[322352311,1712958658480,-1170.71,0.00047123,31]
[322352312,1712958658491,-513.76360399,0.00047123,31]
[322352313,1712958658501,-500.0,0.00047123,31]
[322352314,1712958658511,-500.0,0.00047123,31]
[322352315,1712958658521,-500.0,0.00047123,31]
[322352316,1712958658530,-500.0,0.00047123,31]
[322352317,1712958658540,-500.0,0.00047123,31]
[322352318,1712958658550,-500.0,0.00047123,31]
[322352319,1712958658560,-913.83,0.00047123,31]
[322352320,1712958658570,-500.0,0.00047123,31]
[322352321,1712958658579,-151.0,0.00047123,14]
[322352322,1712958658841,-760.9,0.00047123,31]
[322352323,1712958658850,-975.42,0.00047123,31]
[322352324,1712958658860,-527.06936522,0.00047123,31]
[322352325,1712958658870,-500.0,0.00047123,31]
[322352326,1712958658880,-500.0,0.00047123,31]
[322352327,1712958658889,-500.0,0.00047123,31]
[322352328,1712958658899,-500.0,0.00047123,31]
[322352329,1712958658909,-500.0,0.00047123,31]
[322352330,1712958658918,-151.0,0.00047123,14]
[322352331,1712958658927,-1247.05,0.00047123,31]
[322352332,1712958658937,-500.0,0.00047123,31]
[322352333,1712958658947,-737.88,0.00047123,31]
[322352334,1712958658956,-500.0,0.00047123,31]
[322352335,1712958658966,-151.0,0.00047123,7]
[322352336,1712958658976,-3574.09,0.00047123,31]
[322352337,1712958658985,-746.31,0.00047123,31]
[322352338,1712958658995,-500.0,0.00047123,31]
[322352339,1712958659005,-500.0,0.00047123,31]
[322352340,1712958659014,-151.0,0.00047123,14]
[322352341,1712958659024,-1154.88,0.00047123,31]
[322352342,1712958659036,-500.0,0.00047123,31]
[322352343,1712958659045,-287.09872362,0.00047123,31]
[322352344,1712958659056,-1303.28,0.00047123,31]
[322352345,1712958659066,-173.54,0.00047123,31]
[322352346,1712958659077,-188.97,0.00047123,31]
[322352347,1712958659087,-500.0,0.00047123,31]
[322352348,1712958659096,-500.0,0.00047123,31]
[322352349,1712958659106,-500.0,0.00047123,31]
[322352350,1712958659115,-510.75,0.00047123,31]
[322352351,1712958659125,-500.0,0.00047123,31]
[322352352,1712958659135,-500.0,0.00047123,31]
[322352353,1712958659146,-1868.15,0.00047123,31]
[322352354,1712958659155,-500.0,0.00047123,31]
[322352355,1712958659165,-500.0,0.00047123,31]
[322352356,1712958659175,-761.6,0.00047123,31]
[322352357,1712958659185,-271.7197788,0.00047123,31]
[322352358,1712958659195,-511.37912233,0.00047123,31]
[322352359,1712958659205,-757.87,0.00047123,31]
[322352360,1712958659214,-604.93,0.00047123,31]
[322352361,1712958659224,-500.0,0.00047123,31]
[322352362,1712958659235,-500.0,0.00047123,31]
[322352363,1712958659245,-500.0,0.00047123,31]
[322352364,1712958659254,-590.53,0.00047123,31]
[322352365,1712958659264,-500.0,0.00047123,31]
[322352366,1712958659274,-500.0,0.00047123,31]
[322352367,1712958659283,-151.0,0.00047123,14]
[322352368,1712958659293,-500.0,0.00047123,31]
[322352369,1712958659302,-500.0,0.00047123,31]
[322352370,1712958659311,-151.0,0.00047123,14]
[322352371,1712958659321,-151.0,0.00047123,14]
[322352372,1712958659330,-636.34931897,0.00047123,31]
[322352373,1712958659340,-500.0,0.00047123,31]
[322352374,1712958659350,-500.0,0.00047123,31]
[322352375,1712958659359,-1480.64,0.00047123,31]
[322352376,1712958659369,-500.0,0.00047123,31]
[322352377,1712958659378,-504.96,0.00047123,31]
[322352378,1712958659387,-151.0,0.00047123,14]
[322352379,1712958659397,-500.0,0.00047123,31]
[322352380,1712958659406,-640.8617481,0.00047123,31]
[322352381,1712958659415,-500.0,0.00047123,31]
[322352382,1712958659425,-500.0,0.00047123,31]
[322352383,1712958659434,-500.0,0.00047123,31]
[322352384,1712958659443,-500.0,0.00047123,31]
[322352385,1712958659453,-500.0,0.00047123,31]
[322352386,1712958659463,-500.0,0.00047123,31]
[322352387,1712958659473,-500.0,0.00047123,31]
[322352388,1712958659482,-151.0,0.00047123,14]
[322352389,1712958659491,-426.0494636,0.00047123,31]
[322352390,1712958659501,-150.81351587,0.00047165,30]
[322352391,1712958659511,-2044.78147375,0.00047239,23]
[322352392,1712958659520,-167.041306,0.00047248,46]
[322352393,1712958659530,-1110.0,0.00047342,7]
[322352394,1712958659539,-6924.06841522,0.00047351,2]
[322352395,1712958659549,-800.0,0.0004737,2]
[322352396,1712958659558,-209.613032,0.00047397,14]
[322352397,1712958659567,-500.0,0.00047397,31]
[322352398,1712958659576,-500.0,0.00047397,31]
[322352399,1712958659586,-500.0,0.00047397,31]
[322352400,1712958659595,-204.01466597,0.00047397,31]
[322352401,1712958659605,-399.26,0.00047397,31]
[322352402,1712958659625,-297.79193255,0.00047397,31]
[322352403,1712958659638,-500.0,0.00047397,31]
[322352404,1712958659649,-663.41,0.00047397,31]
[322352405,1712958659659,-500.0,0.00047397,31]
[322352406,1712958659669,-500.0,0.00047397,31]
[322352407,1712958659679,-500.0,0.00047397,31]
[322352408,1712958659689,-500.0,0.00047397,31]
[322352409,1712958659699,-500.0,0.00047397,7]
[322352410,1712958659709,-500.0,0.00047397,31]
[322352411,1712958659719,-500.0,0.00047397,31]
[322352412,1712958659729,-500.0,0.00047397,31]
[322352413,1712958659739,-500.0,0.00047397,31]
[322352414,1712958659749,-500.0,0.00047397,31]
[322352415,1712958659758,-164.49,0.00047397,31]
[322352416,1712958659768,-500.0,0.00047397,31]
[322352417,1712958659778,-500.0,0.00047397,31]
[322352418,1712958659788,-500.0,0.00047397,31]
[322352419,1712958659798,-500.0,0.00047397,31]
[322352420,1712958659807,-243.5284948,0.00047397,31]
[322352421,1712958659817,-184.89,0.00047397,31]
[322352422,1712958659828,-500.0,0.00047397,31]
[322352423,1712958659838,-500.0,0.00047397,31]
[322352424,1712958659848,-500.0,0.00047397,31]
[322352425,1712958659858,-500.0,0.00047397,31]
[322352426,1712958659868,-500.0,0.00047397,31]
[322352427,1712958659879,-500.0,0.00047397,31]
[322352428,1712958659889,-175.75721413,0.00047397,31]
[322352429,1712958659899,-500.0,0.00047397,31]
[322352430,1712958659909,-500.0,0.00047397,31]
[322352431,1712958659918,-500.0,0.00047397,31]
[322352432,1712958659928,-500.0,0.00047397,31]
[322352433,1712958659938,-500.0,0.00047397,31]
[322352434,1712958659948,-500.0,0.00047397,31]
[322352435,1712958659959,-644.29,0.00047397,31]
[322352436,1712958659968,-500.0,0.00047397,31]
[322352437,1712958659978,-500.0,0.00047397,31]
[322352438,1712958659987,-500.0,0.00047397,31]
[322352439,1712958659997,-500.0,0.00047397,31]
[322352440,1712958660007,-500.0,0.00047397,31]
[322352441,1712958660017,-538.33,0.00047397,31]
[322352442,1712958660027,-500.0,0.00047397,31]
[322352443,1712958660038,-500.0,0.00047397,31]
[322352444,1712958660049,-500.0,0.00047397,31]
[322352445,1712958660060,-500.0,0.00047397,31]
[322352446,1712958660072,-500.0,0.00047397,31]
[322352447,1712958660083,-500.0,0.00047397,31]
[322352448,1712958660093,-500.0,0.00047397,31]
[322352449,1712958660105,-500.0,0.00047397,31]
[322352450,1712958660115,-628.25,0.00047397,31]
[322352451,1712958660125,-500.0,0.00047397,31]
[322352452,1712958660134,-500.0,0.00047397,31]
[322352453,1712958660146,-500.0,0.00047397,31]
[322352454,1712958660156,-500.0,0.00047397,31]
[322352455,1712958660167,-500.0,0.00047397,31]
[322352456,1712958660177,-341.02,0.00047397,31]
[322352457,1712958660187,-539.78024087,0.00047397,31]
[322352458,1712958660197,-500.0,0.00047397,31]
[322352459,1712958660207,-192.56336869,0.00047397,31]
[322352460,1712958660217,-538.15,0.00047397,31]
[322352461,1712958660226,-500.0,0.00047397,31]
[322352462,1712958660235,-500.0,0.00047397,31]
[322352463,1712958660245,-506.56,0.00047397,31]
[322352464,1712958660255,-500.0,0.00047397,31]
[322352465,1712958660265,-500.0,0.00047397,31]
[322352466,1712958660275,-500.0,0.00047397,31]
[322352467,1712958660285,-500.0,0.00047397,31]
[322352468,1712958660295,-500.0,0.00047397,31]
[322352469,1712958660306,-576.55,0.00047397,31]
[322352470,1712958660316,-500.0,0.00047397,31]
[322352471,1712958660326,-500.0,0.00047397,31]
[322352472,1712958660336,-500.0,0.00047397,31]
[322352473,1712958660347,-933.0,0.00047397,31]
[322352474,1712958660358,-500.0,0.00047397,31]
[322352475,1712958660368,-2019.61,0.00047397,31]
[322352476,1712958660378,-690.76,0.00047397,31]
[322352477,1712958660387,-500.0,0.00047397,31]
[322352478,1712958660397,-500.0,0.00047397,31]
[322352479,1712958660406,-500.0,0.00047397,31]
[322352480,1712958660416,-500.0,0.00047397,31]
[322352481,1712958660425,-500.0,0.00047397,31]
[322352482,1712958660435,-500.0,0.00047397,31]
[322352483,1712958660445,-564.75,0.00047397,31]
[322352484,1712958660454,-500.0,0.00047397,31]
[322352485,1712958660464,-500.0,0.00047397,31]
[322352486,1712958660473,-539.86,0.00047397,31]
[322352487,1712958660483,-500.0,0.00047397,31]
[322352488,1712958660492,-661.77,0.00047397,31]
[322352489,1712958660502,-500.0,0.00047397,31]
[322352490,1712958660512,-950.68,0.00047397,31]
[322352491,1712958660521,-500.0,0.00047397,31]
[322352492,1712958660532,-500.0,0.00047397,31]
[322352493,1712958660542,-500.0,0.00047397,31]
[322352494,1712958660552,-2117.29,0.00047397,31]
[322352495,1712958660561,-500.0,0.00047397,31]
[322352496,1712958660571,-1018.48,0.00047397,31]
[322352497,1712958660580,-500.0,0.00047397,2]
[322352498,1712958660589,-500.0,0.00047397,31]
[322352499,1712958660600,-679.68,0.00047397,31]
[322352500,1712958660609,-500.0,0.00047397,31]
[322352501,1712958660619,-500.0,0.00047397,31]
[322352502,1712958660628,-843.3,0.00047397,31]
[322352503,1712958660638,-4584.66,0.00047397,31]
[322352504,1712958660648,-500.0,0.00047397,31]
[322352505,1712958660659,-500.0,0.00047397,31]
[322352506,1712958660668,-964.63,0.00047397,31]
[322352507,1712958660678,-500.0,0.00047397,31]
[322352508,1712958660688,-622.99,0.00047397,31]
[322352509,1712958660698,-1471.09,0.00047397,31]
[322352510,1712958660708,-569.65,0.00047397,31]
[322352511,1712958660718,-500.0,0.00047397,31]
[322352512,1712958660728,-566.24,0.00047397,31]
[322352513,1712958660737,-567.23,0.00047397,31]
[322352514,1712958660747,-500.0,0.00047397,31]
[322352515,1712958660756,-500.0,0.00047397,31]
[322352516,1712958660765,-500.0,0.00047397,31]
[322352517,1712958660775,-500.0,0.00047397,31]
[322352518,1712958660785,-500.0,0.00047397,31]
[322352519,1712958660794,-293.42,0.00047397,31]
[322352520,1712958660804,-500.0,0.00047397,31]
[322352521,1712958660813,-500.0,0.00047397,31]
[322352522,1712958660823,-500.0,0.00047397,31]
[322352523,1712958660833,-500.0,0.00047397,31]
[322352524,1712958660842,-504.77,0.00047397,31]
[322352525,1712958660852,-500.0,0.00047397,31]
[322352526,1712958660861,-500.0,0.00047397,31]
[322352527,1712958660870,-2161.08,0.00047397,31]
[322352528,1712958660880,-500.0,0.00047397,31]
[322352529,1712958660890,-1034.34,0.00047397,21]
[322352530,1712958660900,-500.0,0.00047397,31]
[322352531,1712958660909,-500.0,0.00047397,31]
[322352532,1712958660919,-500.0,0.00047397,31]
[322352533,1712958660930,-500.0,0.00047397,31]
[322352534,1712958660939,-564.36,0.00047397,31]
[322352535,1712958660949,-500.0,0.00047397,31]
[322352536,1712958660958,-500.0,0.00047397,31]
[322352537,1712958660968,-500.0,0.00047397,31]
[322352538,1712958660978,-500.0,0.00047397,31]
[322352539,1712958660987,-848.58,0.00047397,31]
[322352540,1712958660997,-500.0,0.00047397,31]
[322352541,1712958661006,-500.0,0.00047397,31]
[322352542,1712958661016,-1673.04,0.00047397,31]
[322352543,1712958661026,-2316.35,0.00047397,31]
[322352544,1712958661036,-500.0,0.00047397,31]
[322352545,1712958661046,-500.0,0.00047397,31]
[322352546,1712958661057,-262.46163829,0.00047397,31]
[322352547,1712958661067,-500.0,0.00047397,31]
[322352548,1712958661077,-500.0,0.00047397,31]
[322352549,1712958661087,-500.0,0.00047397,31]
[322352550,1712958661098,-722.55,0.00047397,31]
[322352551,1712958661108,-677.12,0.00047397,31]
[322352552,1712958661118,-754.19,0.00047397,31]
[322352553,1712958661129,-500.0,0.00047397,31]
[322352554,1712958661139,-500.0,0.00047397,31]
[322352555,1712958661149,-526.18,0.00047397,31]
[322352556,1712958661159,-500.0,0.00047397,31]
[322352557,1712958661168,-1978.67,0.00047397,31]
[322352558,1712958661177,-500.0,0.00047397,31]
[322352559,1712958661187,-500.0,0.00047397,31]
[322352560,1712958661196,-719.28,0.00047397,31]
[322352561,1712958661206,-500.0,0.00047397,31]
[322352562,1712958661285,-500.0,0.00047397,31]
[322352563,1712958661295,-533.63,0.00047397,31]
[322352564,1712958661304,-500.0,0.00047397,31]
[322352565,1712958661314,-500.0,0.00047397,31]
[322352566,1712958661324,-852.78,0.00047397,31]
[322352567,1712958661333,-500.0,0.00047397,31]
[322352568,1712958661343,-650.62,0.00047397,31]
[322352569,1712958661354,-500.0,0.00047397,31]
[322352570,1712958661363,-663.97,0.00047397,31]
[322352571,1712958661372,-1170.71,0.00047397,31]
[322352572,1712958661382,-371.77663689,0.00047397,31]
[322352573,1712958661391,-500.0,0.00047397,31]
[322352574,1712958661400,-500.0,0.00047397,31]
[322352575,1712958661410,-500.0,0.00047397,31]
[322352576,1712958661420,-500.0,0.00047397,31]
[322352577,1712958661429,-500.0,0.00047397,31]
[322352578,1712958661438,-913.83,0.00047397,31]
[322352579,1712958661447,-500.0,0.00047397,31]
[322352580,1712958661456,-760.9,0.00047397,31]
[322352581,1712958661466,-975.42,0.00047397,31]
[322352582,1712958661475,-500.0,0.00047397,31]
[322352583,1712958661484,-500.0,0.00047397,31]
[322352584,1712958661493,-1247.05,0.00047397,31]
[322352585,1712958661503,-500.0,0.00047397,31]
[322352586,1712958661513,-737.88,0.00047397,31]
[322352587,1712958661522,-500.0,0.00047397,31]
[322352588,1712958661531,-3574.09,0.00047397,31]
[322352589,1712958661541,-746.31,0.00047397,31]
[322352590,1712958661549,-222.17,0.00047397,31]
[322352591,1712958661559,-500.0,0.00047397,31]
[322352592,1712958661568,-1154.88,0.00047397,31]
[322352593,1712958661577,-1303.28,0.00047397,31]